bitfinex-derivatives/quotes_SOLF0:USTF0_20220101
["timestamp","ask_amount","ask_price","bid_price","bid_amount"]
[1641047225156,27.66479,172.81,172.76,3.0]
[1641047225357,27.66479,172.81,172.76,8.27]
[1641047225656,27.66479,172.81,172.76,5.27]
[1641047225856,27.66479,172.81,172.76,8.27]
[1641047226059,27.66479,172.81,172.77,3.0]
[1641047226256,27.66479,172.81,172.76,5.27]
[1641047227160,27.66479,172.81,172.77,3.0]
[1641047227665,27.66479,172.81,172.76,5.27]
[1641047228866,27.66479,172.81,172.78,3.0]
[1641047229065,46.77894932,172.85,172.78,3.0]
[1641047229266,46.77894932,172.85,172.77,32.3788]
[1641047229465,34.52579,172.85,172.77,32.3788]
[1641047229667,34.52579,172.85,172.77,35.3788]
[1641047229866,34.52579,172.85,172.77,3.0]
[1641047230066,5.78569776,172.83,172.77,3.0]
[1641047230268,27.66479,172.81,172.77,3.0]
[1641047231867,5.78569776,172.83,172.79,3.0]
[1641047232068,5.78569776,172.83,172.77,30.3339]
[1641047234670,27.66479,172.85,172.82,3.0]
[1641047234871,27.66479,172.85,172.77,30.3339]
[1641047235370,27.66479,172.85,172.81,3.0]
[1641047236071,27.66479,172.85,172.77,30.3339]
[1641047236771,27.66479,172.85,172.8,3.0]
[1641047237875,12.25315932,172.82,172.8,3.0]
[1641047238675,12.25315932,172.81,172.8,3.0]
[1641047239476,12.25315932,172.81,172.77,3.0]
[1641047239675,12.25315932,172.81,172.75,3.0]
[1641047239876,12.25315932,172.81,172.74,12.35151583]
[1641047240176,12.25315932,172.81,172.75,3.0]
[1641047240378,27.66479,172.79,172.76,3.0]
[1641047240577,31.86579,172.79,172.72,31.0368]
[1641047240977,31.86579,172.79,172.76,3.0]
[1641047242577,31.86579,172.79,172.72,31.0368]
[1641047243379,31.86579,172.79,172.73,3.0]
[1641047243979,31.86579,172.79,172.72,31.0368]
[1641047244278,44.11894932,172.79,172.72,31.0368]
[1641047244979,31.86579,172.79,172.74,3.0]
[1641047245180,31.86579,172.79,172.72,31.0368]
[1641047245479,31.86579,172.79,172.72,34.0368]
[1641047245780,44.11894932,172.79,172.72,31.0368]
[1641047246182,44.11894932,172.79,172.73,3.0]
[1641047246381,44.11894932,172.79,172.72,31.0368]
[1641047246582,12.25315932,172.78,172.74,3.0]
[1641047246781,12.25315932,172.78,172.72,31.0368]
[1641047247183,12.25315932,172.78,172.74,3.0]
[1641047250289,12.25315932,172.78,172.72,31.0368]
[1641047250691,12.25315932,172.78,172.75,3.0]
[1641047251491,27.66479,172.79,172.75,3.0]
[1641047251691,27.66479,172.79,172.72,31.0368]
[1641047251891,27.66479,172.79,172.74,3.0]
[1641047252090,39.91794932,172.79,172.74,3.0]
[1641047252692,39.91794932,172.79,172.72,31.0368]
[1641047253293,12.25315932,172.77,172.72,31.0368]
[1641047254391,12.25315932,172.77,172.74,3.0]
[1641047254992,12.25315932,172.77,172.73,1.97438105]
[1641047255193,12.25315932,172.77,172.74,3.0]
[1641047255394,12.25315932,172.77,172.72,31.0368]
[1641047255593,12.25315932,172.77,172.74,3.0]
[1641047256497,2.13744503,172.78,172.74,3.0]
[1641047258300,2.13744503,172.78,172.72,31.0368]
[1641047260803,2.13744503,172.78,172.74,3.0]
[1641047261003,2.13744503,172.78,172.72,31.0368]
[1641047261706,2.13744503,172.78,172.75,3.0]
[1641047263405,2.13744503,172.78,172.74,4.601]
[1641047263406,5.78770691,172.77,172.74,4.601]
[1641047264007,2.13744503,172.76,172.74,4.601]
[1641047264407,2.13744503,172.76,172.75,3.0]
[1641047264808,5.78770691,172.77,172.75,3.0]
[1641047268316,5.78770691,172.77,172.74,4.601]
[1641047268516,5.78770691,172.77,172.74,7.601]
[1641047268720,5.78770691,172.77,172.74,4.601]
[1641047268920,5.78770691,172.77,172.74,7.601]
[1641047269120,2.12720699,172.76,172.74,7.601]
[1641047269622,2.12720699,172.76,172.74,4.601]
[1641047269825,14.38036631,172.76,172.74,4.601]
[1641047272721,2.12720699,172.76,172.74,4.601]
[1641047272925,2.12720699,172.76,172.71,27.66479]
[1641047273424,2.12720699,172.76,172.72,1.97416569]
[1641047274624,4.11146334,172.73,172.72,6.08562903]
[1641047275026,4.11146334,172.73,172.72,9.08562903]
[1641047278933,4.11146334,172.73,172.72,4.97416569]
[1641047281435,4.11146334,172.73,172.72,9.08564507]
[1641047281836,4.11146334,172.73,172.72,7.11147938]
[1641047282035,12.25315932,172.75,172.72,3.0]
[1641047283236,12.25315932,172.75,172.74,3.0]
[1641047283438,12.25315932,172.75,172.74,8.005]
[1641047284140,12.25315932,172.75,172.74,11.005]
[1641047284343,4.11073632,172.76,172.74,9.97922915]
[1641047284738,4.11073632,172.76,172.75,3.0]
[1641047285140,4.11073632,172.77,172.75,4.97422915]
[1641047285439,4.11073632,172.77,172.75,1.97422915]
[1641047285638,4.11073632,172.77,172.76,3.0]
[1641047286643,4.11073632,172.77,172.76,4.97422915]
[1641047288342,31.77552632,172.78,172.76,4.97422915]
[1641047288540,4.11073632,172.78,172.77,3.0]
[1641047288941,4.11073632,172.78,172.77,4.97422915]
[1641047289444,4.11073632,172.82,172.77,3.0]
[1641047289642,4.11073632,172.82,172.76,30.811]
[1641047290143,29.6033,172.83,172.76,30.811]
[1641047290743,4.0880553,172.82,172.76,30.811]
[1641047291142,4.0880553,172.82,172.79,3.0]
[1641047292546,4.0880553,172.81,172.79,3.0]
[1641047293648,2.1245408,172.82,172.79,3.0]
[1641047294349,4.08815391,172.81,172.79,3.0]
[1641047294853,2.1245408,172.82,172.79,3.0]
[1641047295549,4.08815819,172.81,172.79,3.0]
[1641047295952,2.1245408,172.82,172.79,3.0]
[1641047296355,2.1245408,172.82,172.76,30.811]
[1641047296554,4.08816077,172.81,172.76,30.811]
[1641047297156,4.08816077,172.81,172.79,3.0]
[1641047297357,2.1245408,172.82,172.79,3.0]
[1641047297659,2.1245408,172.82,172.76,30.811]
[1641047297956,4.08816227,172.81,172.76,30.811]
[1641047298556,2.1245408,172.82,172.76,30.811]
[1641047298759,2.1245408,172.82,172.79,3.0]
[1641047299358,4.08816279,172.81,172.76,30.811]
[1641047299862,2.1245408,172.82,172.8,3.0]
[1641047300059,2.1245408,172.82,172.76,30.811]
[1641047300360,29.6033,172.83,172.76,30.811]
[1641047300561,4.08798171,172.82,172.76,30.811]
[1641047301164,29.6033,172.83,172.76,30.811]
[1641047302063,4.08798439,172.82,172.8,3.0]
[1641047302664,14.38941021,172.82,172.8,3.0]
[1641047303965,14.38941021,172.82,172.78,4.08799156]
[1641047304166,14.38941021,172.82,172.8,3.0]
[1641047305071,29.6033,172.83,172.8,3.0]
[1641047305271,27.66479,172.84,172.8,3.0]
[1641047305770,4.0,172.81,172.78,4.08799156]
[1641047305970,4.0,172.81,172.74,12.35151583]
[1641047306171,5.78603252,172.82,172.74,12.35151583]
[1641047306470,39.99175445,172.76,172.69,1.93681884]
[1641047307371,39.99175445,172.76,172.72,3.0]
[1641047307372,2.13528119,172.75,172.72,3.0]
[1641047307573,2.13528119,172.75,172.69,1.93681884]
[1641047307773,39.99175445,172.76,172.67,12.35151583]
[1641047308672,14.50073032,172.75,172.67,22.19352605]
[1641047309173,27.66479,172.76,172.67,1.93680761]
[1641047309774,27.66479,172.76,172.7,3.0]
[1641047309975,14.50618938,172.75,172.7,3.0]
[1641047310177,14.50618938,172.75,172.67,1.93680761]
[1641047310376,14.50618938,172.75,172.71,3.0]
[1641047311077,12.33223488,172.74,172.71,3.0]
[1641047312484,12.33223488,172.74,172.66,43.76601583]
[1641047312883,10.71212907,172.75,172.67,1.93676944]
[1641047313582,12.33294913,172.73,172.67,1.93676944]
[1641047313784,12.33294913,172.73,172.71,3.0]
[1641047313984,10.71212907,172.75,172.71,3.0]
[1641047314183,12.3325507,172.74,172.71,3.0]
[1641047315185,12.3325507,172.74,172.66,43.76601583]
[1641047315385,12.3325507,172.74,172.66,46.76601583]
[1641047315784,12.3325507,172.74,172.71,3.0]
[1641047315988,12.3325507,172.74,172.66,46.76601583]
[1641047316185,12.3325507,172.74,172.72,3.0]
[1641047317086,12.3325507,172.74,172.7,3.0]
[1641047317688,10.71212907,172.75,172.7,3.0]
[1641047317887,5.78887956,172.74,172.7,3.0]
[1641047318388,14.50721862,172.73,172.7,3.0]
[1641047318789,14.50721862,172.73,172.66,31.4145]
[1641047319391,14.50721862,172.73,172.7,3.0]
[1641047321191,14.50721862,172.73,172.66,31.4145]
[1641047321591,12.33326412,172.72,172.67,1.93750602]
[1641047322291,27.66479,172.72,172.66,1.93750602]
[1641047322494,27.66479,172.72,172.7,3.0]
[1641047323595,27.66479,172.72,172.65,162.98202926]
[1641047324194,21.08407333,172.72,172.65,162.98202926]
[1641047324694,21.08407333,172.72,172.69,3.0]
[1641047324894,21.08407333,172.72,172.61,27.66479]
[1641047325896,21.08407333,172.72,172.61,30.66479]
[1641047325897,31.8539,172.71,172.61,30.66479]
[1641047326596,31.8539,172.71,172.67,3.0]
[1641047326797,21.08407333,172.72,172.67,3.0]
[1641047326996,21.08407333,172.72,172.68,3.0]
[1641047327196,21.08407333,172.72,172.61,30.66479]
[1641047327398,29.933,172.71,172.61,30.66479]
[1641047327596,29.933,172.71,172.62,3.0]
[1641047327797,29.933,172.71,172.67,3.0]
[1641047327998,21.08407333,172.72,172.67,3.0]
[1641047328596,21.08407333,172.72,172.62,3.0]
[1641047328797,31.8905,172.71,172.62,3.0]
[1641047329499,31.8905,172.71,172.68,3.0]
[1641047329701,21.08407333,172.72,172.68,3.0]
[1641047330700,21.08407333,172.72,172.65,6.408]
[1641047331802,21.08407333,172.72,172.61,30.66479]
[1641047332001,30.174,172.71,172.61,30.66479]
[1641047332905,30.174,172.71,172.68,3.0]
[1641047333105,21.08407333,172.72,172.68,3.0]
[1641047334512,5.79005269,172.7,172.68,3.0]
[1641047335510,5.79005269,172.7,172.61,30.66479]
[1641047336108,2.2351045,172.69,172.62,14.22980677]
[1641047336310,2.2351045,172.69,172.62,21.98084622]
[1641047336507,2.2351045,172.69,172.68,3.0]
[1641047336707,2.2351045,172.69,172.66,3.0]
[1641047336911,14.44136066,172.7,172.65,93.58733158]
[1641047337111,14.44136066,172.7,172.66,3.0]
[1641047337510,14.44136066,172.7,172.65,93.58733158]
[1641047338209,14.44136066,172.7,172.67,3.0]
[1641047338612,27.66479,172.69,172.67,3.0]
[1641047339811,2.2351045,172.68,172.67,3.0]
[1641047340111,2.2351045,172.68,172.61,40.01630583]
[1641047340312,2.2351045,172.68,172.64,3.0]
[1641047340512,2.2351045,172.68,172.61,40.01630583]
[1641047340715,2.2351045,172.68,172.63,3.0]
[1641047341314,2.2351045,172.68,172.61,40.01630583]
[1641047341512,2.2351045,172.68,172.64,3.0]
[1641047341818,12.20625616,172.66,172.64,3.0]
[1641047343618,12.20625616,172.66,172.61,27.66479]
[1641047343918,12.20625616,172.66,172.65,3.0]
[1641047344117,10.94044027,172.68,172.65,3.0]
[1641047345618,10.94044027,172.68,172.61,27.66479]
[1641047345822,29.8998945,172.69,172.61,27.66479]
[1641047346118,29.8998945,172.69,172.65,3.0]
[1641047346318,2.2351045,172.68,172.65,3.0]
[1641047346518,2.2351045,172.68,172.62,1.87825341]
[1641047347820,2.2351045,172.68,172.62,4.87825341]
[1641047348021,2.2351045,172.68,172.62,1.87825341]
[1641047348222,10.94116751,172.68,172.61,3.0]
[1641047348422,5.79206487,172.64,172.61,3.0]
[1641047348623,5.79206487,172.64,172.58,31.7741]
[1641047348822,31.9728,172.67,172.63,3.0]
[1641047349026,64.47123374,172.67,172.63,3.0]
[1641047349322,32.49843374,172.67,172.59,3.0]
[1641047349522,32.49843374,172.67,172.66,3.0]
[1641047349723,60.16322374,172.69,172.66,3.0]
[1641047349926,60.16322374,172.69,172.6,3.0]
[1641047350124,60.16322374,172.69,172.67,3.0]
[1641047350525,32.49843374,172.69,172.64,3.0]
[1641047350724,32.49843374,172.71,172.68,3.0]
[1641047351123,32.49843374,172.71,172.62,59.39879]
[1641047351325,68.9724836,172.72,172.62,59.39879]
[1641047351623,68.9724836,172.72,172.67,3.0]
[1641047353128,68.9724836,172.72,172.62,59.39879]
[1641047353629,68.9724836,172.72,172.66,3.0]
[1641047353928,68.9724836,172.72,172.63,1.86908984]
[1641047354130,68.9724836,172.72,172.66,3.0]
[1641047354330,32.49843374,172.71,172.65,3.0]
[1641047354629,35.78982372,172.71,172.65,3.0]
[1641047355032,32.49843374,172.71,172.65,3.0]
[1641047355432,32.49843374,172.71,172.62,59.39879]
[1641047355732,32.49843374,172.71,172.64,3.0]
[1641047356130,32.49843374,172.71,172.59,12.35151583]
[1641047356333,5.79072326,172.68,172.61,3.0]
[1641047356531,5.79072326,172.68,172.6,31.3356]
[1641047356831,33.45551326,172.68,172.62,3.0]
[1641047357932,65.953947,172.68,172.6,31.3356]
[1641047358131,65.953947,172.68,172.6,34.3356]
[1641047358331,65.953947,172.68,172.6,31.3356]
[1641047358532,32.49843374,172.67,172.6,31.3356]
[1641047358932,32.49843374,172.67,172.61,3.0]
[1641047359333,32.49843374,172.67,172.64,3.0]
[1641047359733,32.49843374,172.67,172.6,31.3356]
[1641047360033,5.79072326,172.68,172.64,3.0]
[1641047360034,12.34371708,172.65,172.64,3.0]
[1641047360335,12.34371708,172.65,172.64,7.665]
[1641047360735,12.34371708,172.66,172.64,7.665]
[1641047362234,12.34371708,172.67,172.64,7.665]
[1641047362838,12.34371708,172.67,172.64,3.0]
[1641047363037,12.34371708,172.66,172.64,3.0]
[1641047363339,12.34371708,172.66,172.6,31.3356]
[1641047363938,12.34371708,172.67,172.6,31.3356]
[1641047364442,12.34371708,172.67,172.64,3.0]
[1641047364943,14.58880353,172.67,172.61,1.86905536]
[1641047365145,14.58880353,172.67,172.64,3.0]
[1641047365445,14.58880353,172.67,172.6,31.3356]
[1641047366147,12.34371708,172.67,172.63,4.11409344]
[1641047366644,12.34371708,172.67,172.64,3.0]
[1641047367751,12.34371708,172.67,172.63,4.11409344]
[1641047368552,12.34371708,172.67,172.65,3.0]
[1641047369754,12.34371708,172.67,172.63,4.11409344]
[1641047370559,12.34371708,172.67,172.66,3.0]
[1641047370957,12.34371708,172.67,172.63,4.11409344]
[1641047371259,12.34371708,172.68,172.64,4.11409344]
[1641047371656,12.34371708,172.68,172.66,3.0]
[1641047371858,12.34371708,172.67,172.66,3.0]
[1641047374061,12.34371708,172.67,172.64,32.4568]
[1641047374261,12.34371708,172.67,172.63,4.11409344]
[1641047375963,12.34371708,172.65,172.62,3.0]
[1641047377866,14.58880353,172.67,172.62,3.0]
[1641047378066,14.58880353,172.67,172.61,27.66479]
[1641047378268,14.58880353,172.67,172.64,3.0]
[1641047378466,14.58880353,172.67,172.62,3.0]
[1641047379671,14.58880353,172.67,172.61,27.66479]
[1641047380069,20.38002982,172.67,172.63,3.0]
[1641047380367,12.34371708,172.66,172.63,3.0]
[1641047380669,12.34371708,172.66,172.61,27.66479]
[1641047380873,12.34371708,172.66,172.63,3.0]
[1641047381170,2.24508645,172.66,172.61,27.66479]
[1641047381369,2.24508645,172.66,172.62,3.0]
[1641047381772,14.58880353,172.66,172.62,3.0]
[1641047382270,14.58880353,172.66,172.6,30.4228]
[1641047382471,14.58880353,172.66,172.62,3.0]
[1641047383172,42.25359353,172.66,172.62,3.0]
[1641047383373,12.34371708,172.64,172.62,3.0]
[1641047387380,12.34371708,172.64,172.6,34.53689344]
[1641047387581,12.34371708,172.63,172.62,3.0]
[1641047388883,10.95168926,172.65,172.62,3.0]
[1641047389088,12.34413979,172.64,172.62,3.0]
[1641047391186,2.24508645,172.66,172.62,3.0]
[1641047391388,12.34462537,172.63,172.62,3.0]
[1641047392486,2.24508645,172.66,172.62,3.0]
[1641047392688,12.34385724,172.64,172.62,3.0]
[1641047393087,2.24508645,172.66,172.62,3.0]
[1641047393787,29.90987645,172.66,172.62,3.0]
[1641047393989,12.34384493,172.64,172.62,3.0]
[1641047394490,10.95168926,172.65,172.62,3.0]
[1641047395188,12.34388713,172.64,172.62,3.0]
[1641047395690,10.95168926,172.65,172.62,3.0]
[1641047396190,10.95168926,172.65,172.6,34.53689344]
[1641047396389,14.5808341,172.65,172.6,34.53689344]
[1641047396691,14.5808341,172.65,172.62,3.0]
[1641047397890,14.5808341,172.65,172.6,34.53689344]
[1641047398391,12.33574765,172.64,172.6,30.4228]
[1641047398791,12.33574765,172.64,172.61,3.0]
[1641047398991,5.79240037,172.63,172.61,3.0]
[1641047399794,2.24508645,172.62,172.61,3.0]
[1641047400395,18.12814802,172.63,172.61,3.0]
[1641047400594,18.12814802,172.63,172.58,31.77888344]
[1641047400796,18.12814802,172.63,172.62,3.0]
[1641047400996,12.33574765,172.63,172.62,6.0]
[1641047401896,12.33574765,172.66,172.62,6.0]
[1641047402094,12.33574765,172.66,172.63,32.954]
[1641047402901,12.33574765,172.67,172.63,32.954]
[1641047403099,12.33574765,172.67,172.63,3.0]
[1641047403604,12.33574765,172.67,172.66,3.0]
[1641047403803,12.33574765,172.68,172.66,3.0]
[1641047404407,12.33574765,172.68,172.63,4.11409344]
[1641047404705,18.12697394,172.67,172.65,3.0]
[1641047405405,12.33574765,172.66,172.65,3.0]
[1641047406204,5.79122629,172.67,172.65,3.0]
[1641047406804,5.79122629,172.67,172.61,27.66479]
[1641047407005,5.79122629,172.67,172.62,3.0]
[1641047407206,5.79122629,172.67,172.61,4.11409344]
[1641047407405,5.79122629,172.67,172.62,3.0]
[1641047407805,5.79122629,172.67,172.6,31.898]
[1641047407806,12.34539643,172.62,172.6,31.898]
[1641047408606,12.34539643,172.62,172.61,3.0]
[1641047408905,12.34539643,172.62,172.6,3.0]
[1641047409107,5.79256814,172.63,172.6,3.0]
[1641047409306,5.79256814,172.63,172.61,3.0]
[1641047409508,5.79256814,172.63,172.6,3.0]
[1641047409707,5.79256814,172.63,172.58,27.66479]
[1641047409906,5.79256814,172.63,172.59,3.0]
[1641047410107,5.79256814,172.63,172.61,3.0]
[1641047410310,5.79256814,172.63,172.6,3.0]
[1641047410507,5.79256814,172.63,172.58,27.66479]
[1641047410508,5.79256814,172.63,172.59,3.0]
[1641047410808,5.79256814,172.63,172.58,27.66479]
[1641047411008,5.79256814,172.63,172.6,3.0]
[1641047411510,5.79256814,172.63,172.58,27.66479]
[1641047415313,5.79256814,172.63,172.6,3.0]
[1641047415712,5.79256814,172.63,172.58,27.66479]
[1641047415914,5.79256814,172.63,172.59,3.0]
[1641047416112,5.79256814,172.63,172.58,27.66479]
[1641047416712,2.24668551,172.62,172.58,30.66479]
[1641047417414,2.24668551,172.62,172.58,27.66479]
[1641047418420,2.24668551,172.62,172.6,3.0]
[1641047419119,2.24668551,172.62,172.58,27.66479]
[1641047419320,2.24668551,172.62,172.58,3.0]
[1641047419822,29.91147551,172.62,172.58,3.0]
[1641047420023,4.09736896,172.59,172.58,3.0]
[1641047420823,2.24668551,172.61,172.58,3.0]
[1641047421725,4.09744219,172.59,172.58,3.0]
[1641047422326,2.24668551,172.61,172.58,3.0]
[1641047426127,2.24668551,172.61,172.55,31.8356]
[1641047426128,2.24668551,172.61,172.6,3.0]
[1641047426346,10.98303837,172.61,172.6,3.0]
[1641047427029,2.24668551,172.62,172.56,4.11409344]
[1641047427630,12.3470695,172.59,172.55,35.94969344]
[1641047428130,12.3470695,172.59,172.58,3.0]
[1641047428330,29.91147551,172.62,172.58,3.0]
[1641047428930,12.3470969,172.59,172.58,3.0]
[1641047429432,12.34707767,172.6,172.58,3.0]
[1641047432130,12.34707767,172.6,172.59,3.0]
[1641047433133,12.34707767,172.6,172.56,4.11409344]
[1641047433335,12.34707767,172.6,172.58,3.0]
[1641047434542,12.34707767,172.6,172.55,35.94969344]
[1641047435243,4.11466304,172.56,172.55,35.94969344]
[1641047435444,4.11466304,172.56,172.55,4.11409344]
[1641047435844,12.34707767,172.6,172.55,5.98253332]
[1641047436447,4.11465947,172.56,172.55,5.98253332]
[1641047437045,12.34707767,172.6,172.55,5.98253332]
[1641047437445,12.34707767,172.6,172.59,3.0]
[1641047442350,12.34707767,172.6,172.56,29.7067]
[1641047442552,12.34707767,172.6,172.59,3.0]
[1641047442749,10.98303837,172.62,172.59,3.0]
[1641047443249,10.98303837,172.62,172.56,29.7067]
[1641047444153,12.34436291,172.59,172.58,3.0]
[1641047448855,10.98303837,172.62,172.58,3.0]
[1641047449056,12.34343723,172.61,172.58,3.0]
[1641047449257,12.34343723,172.61,172.56,33.82079344]
[1641047449455,12.34343723,172.61,172.59,3.0]
[1641047449756,12.34343723,172.6,172.56,33.82079344]
[1641047450256,12.34343723,172.6,172.58,3.0]
[1641047450456,10.98303837,172.62,172.56,33.82079344]
[1641047450856,12.34537491,172.6,172.56,33.82079344]
[1641047451057,12.34537491,172.6,172.59,3.0]
[1641047451457,10.98303837,172.62,172.59,3.0]
[1641047453866,10.98303837,172.62,172.56,29.7067]
[1641047454469,10.98303837,172.62,172.58,3.0]
[1641047458780,10.98303837,172.62,172.6,3.0]
[1641047459278,10.98303837,172.62,172.56,29.7067]
[1641047461881,10.98303837,172.62,172.59,3.0]
[1641047462580,10.98303837,172.62,172.56,29.7067]
[1641047462783,10.98303837,172.62,172.58,3.0]
[1641047463382,43.48147211,172.62,172.58,3.0]
[1641047463982,43.48147211,172.62,172.56,29.7067]
[1641047464283,10.98303837,172.62,172.56,29.7067]
[1641047464583,10.98303837,172.62,172.58,3.0]
[1641047467186,12.33276127,172.59,172.58,3.0]
[1641047468185,12.33276127,172.6,172.58,3.0]
[1641047468985,12.33276127,172.59,172.58,3.0]
[1641047469686,12.33276127,172.59,172.58,6.0]
[1641047469888,6.76796127,172.59,172.58,3.0]
[1641047470787,4.11025405,172.59,172.58,3.0]
[1641047471489,2.24668551,172.62,172.58,3.0]
[1641047472188,2.24668551,172.62,172.61,3.0]
[1641047472395,5.79256814,172.63,172.61,3.0]
[1641047472588,5.79256814,172.63,172.57,34.77888344]
[1641047473089,2.19065765,172.62,172.57,34.77888344]
[1641047473789,5.79256814,172.63,172.57,34.77888344]
[1641047474389,2.19059993,172.62,172.57,34.77888344]
[1641047474993,5.79256814,172.63,172.57,34.77888344]
[1641047475192,5.79256814,172.63,172.62,3.0]
[1641047475593,8.03305819,172.63,172.62,3.0]
[1641047476593,8.03305819,172.63,172.58,3.0]
[1641047477896,2.24049005,172.62,172.58,3.0]
[1641047479397,2.24049005,172.62,172.61,3.0]
[1641047479897,2.24049005,172.62,172.58,31.3169]
[1641047480099,2.24049005,172.62,172.61,3.0]
[1641047483700,2.24049005,172.62,172.58,31.3169]
[1641047484302,2.24049005,172.62,172.6,3.0]
[1641047484501,2.24049005,172.62,172.58,31.3169]
[1641047484701,2.24049005,172.62,172.59,3.0]
[1641047485901,2.24049005,172.62,172.55,32.0976]
[1641047486504,29.90528005,172.62,172.55,32.0976]
[1641047486700,2.24049005,172.62,172.55,32.0976]
[1641047487101,5.79407845,172.58,172.54,30.66479]
[1641047487301,5.79407845,172.58,172.54,27.66479]
[1641047487502,5.79592546,172.55,172.54,27.66479]
[1641047487902,5.79592546,172.55,172.51,4.11409344]
[1641047488504,2.24049005,172.54,172.47,5.303]
[1641047488704,2.24049005,172.54,172.52,3.0]
[1641047489104,2.24049005,172.54,172.47,5.303]
[1641047489305,2.24049005,172.54,172.5,3.0]
[1641047489505,2.24049005,172.54,172.47,5.303]
[1641047490310,4.10309859,172.51,172.47,5.303]
[1641047490908,29.90528005,172.54,172.5,3.0]
[1641047491108,29.90528005,172.54,172.51,3.0]
[1641047491710,2.24049005,172.53,172.47,5.303]
[1641047491909,2.24049005,172.53,172.49,3.0]
[1641047492310,4.10318802,172.5,172.49,3.0]
[1641047492913,2.24049005,172.53,172.49,3.0]
[1641047493610,4.10342157,172.5,172.49,3.0]
[1641047494412,4.08189965,172.53,172.49,3.0]
[1641047496013,10.05192546,172.55,172.47,5.303]
[1641047496213,10.05192546,172.55,172.49,3.0]
[1641047496613,27.66479,172.54,172.49,3.0]
[1641047496814,27.66479,172.54,172.5,3.0]
[1641047497013,27.66479,172.54,172.47,5.303]
[1641047497413,27.66479,172.54,172.49,3.0]
[1641047498316,27.66479,172.54,172.47,5.303]
[1641047498719,27.66479,172.54,172.5,3.0]
[1641047499218,27.66479,172.54,172.47,5.303]
[1641047499721,27.66479,172.54,172.5,3.0]
[1641047499920,27.66479,172.54,172.47,5.303]
[1641047501023,27.66479,172.54,172.49,3.0]
[1641047501623,27.66479,172.54,172.47,5.303]
[1641047502222,27.66479,172.54,172.51,3.0]
[1641047502623,27.66479,172.54,172.47,5.303]
[1641047503227,27.66479,172.54,172.47,9.41709344]
[1641047503228,10.80833338,172.53,172.47,9.41709344]
[1641047503624,10.80833338,172.53,172.51,3.0]
[1641047504724,10.80833338,172.53,172.48,3.0]
[1641047504925,5.79710145,172.52,172.47,4.11409344]
[1641047506128,34.69744803,172.51,172.43,31.77888344]
[1641047506328,34.69744803,172.51,172.48,3.0]
[1641047506528,34.69744803,172.51,172.43,31.77888344]
[1641047506729,27.66479,172.5,172.43,31.77888344]
[1641047507728,10.80833338,172.49,172.43,31.77888344]
[1641047509431,10.80833338,172.49,172.46,3.0]
[1641047510834,43.30676712,172.49,172.46,3.0]
[1641047511133,27.66479,172.47,172.46,3.0]
[1641047512432,38.47312338,172.47,172.41,35.89129344]
[1641047513033,38.47312338,172.47,172.44,3.0]
[1641047513233,10.80833338,172.46,172.41,34.7772]
[1641047513433,10.80833338,172.46,172.41,31.7772]
[1641047513838,10.80833338,172.46,172.41,35.89129344]
[1641047514236,10.80833338,172.46,172.43,3.0]
[1641047514434,10.80833338,172.46,172.41,35.89129344]
[1641047514638,10.80833338,172.46,172.41,34.7772]
[1641047514836,10.80833338,172.46,172.41,31.7772]
[1641047515035,10.80833338,172.46,172.43,3.0]
[1641047515435,10.80833338,172.46,172.41,31.7772]
[1641047515835,10.80833338,172.46,172.43,3.0]
[1641047516236,10.80833338,172.46,172.41,35.89129344]
[1641047516436,5.79878226,172.44,172.41,35.89129344]
[1641047516635,5.79878226,172.44,172.41,4.11409344]
[1641047516834,5.79878226,172.44,172.41,7.11409344]
[1641047517135,5.79878226,172.44,172.43,3.0]
[1641047517536,27.66479,172.47,172.43,3.0]
[1641047517937,27.66479,172.47,172.41,3.0]